[Event "21st Open Gran Hotel Bali-A 2024"]
[Site "Benidorm"]
[Date "2024.11.30"]
[Round "2.18"]
[White "Sedivy, Martin"]
[Black "Tan, Jun Ying"]
[Result "0-1"]
[ECO "B20"]
[WhiteElo "2113"]
[BlackElo "2357"]
[Annotator "TA"]
[PlyCount "160"]
[EventDate "2024.11.26"]
[EventType "swiss"]
[EventCountry "ESP"]
[SourceTitle "playchess.com"]
[Source "ChessBase"]
[SourceQuality "1"]
[TimeControl "5400+30"]

{[%evp 27,160,-102,-104,-105,-101,-104,-75,-95,-91,-87,-94,-90,-83,-89,-50,-62,-24,-79,-10,-34,-32,-39,-39,-40,-39,-33,-39,-56,-51,-58,-48,-49,-37,-89,-88,-91,-87,-90,-91,-91,-91,-97,-83,-97,-91,-91,-91,-91,-91,-91,-91,-91,-91,-91,-91,-117,-80,-144,-136,-137,-132,-129,-112,-141,-141,-136,-134,-148,-139,-147,-129,-129,-129,-129,-129,-155,-156,-201,-162,-166,-155,-161,-159,-168,-166,-167,-168,-173,-168,-168,-153,-175,-155,-179,-148,-156,0,-172,-173,-171,-148,-235,-231,-241,-247,-247,-241,-236,-225,-240,-230,-228,-221,-233,-215,-288,-286,-279,-265,-287,-256,-363,-374,-374,-295,-368,-374,-368,-366,-375,-375,-657,-575,-512,-511]} 1. e4 {[%emt 0:02:29]} c5 {[%emt 0:00:10]} 2. b3 {[%emt 0:00:23]} g6 {[%emt 0:00:11]} 3. Bb2 {[%emt 0:00:12]} Nf6 {[%emt 0:00:04]} 4. c4 {[%emt 0:02:10]} Bg7 {[%emt 0:05:06]} 5. Nf3 {[%emt 0:16:26]} O-O {[%emt 0:01:56]} 6. d3 {[%emt 0:01:53]} Nc6 {[%emt 0:01:22]} 7. Be2 {[%emt 0:00:49]} d6 {[%emt 0:04:08]} 8. O-O {[%emt 0:00:15]} Bg4 {[%emt 0:09:29]} 9. Ne1 {[%emt 0:02:36]} Bd7 {[%emt 1:12:34]} 10. Nc2 {[%emt 0:01:10]} a6 {[%emt 0:00:00]} 11. Ne3 {[%emt 0:01:09]} b5 {[%emt 0:00:00]} 12. Nd2 {[%emt 0:07:29]} Nxe4 {[%emt 0:00:00]} 13. Bxg7 {[%emt 0:00:07]} Nxd2 {[%emt 0:00:00]} 14. Bxf8 {[%emt 0:00:05]} Nxf1 {[%emt 0:00:00]} 15. Bh6 {[%emt 0:00:09]} Nxe3 {[%emt 0:00:00]} 16. fxe3 {[%emt 0:00:08]} e6 {[%emt 0:00:00]} 17. Qf1 {[%emt 0:08:57]} Qh4 {[%emt 0:00:00]} 18. Bf4 {[%emt 0:00:16]} e5 {[%emt 0:00:00]} 19. Bg3 {[%emt 0:00:08]} Qg5 {[%emt 0:00:00]} 20. Qf2 {[%emt 0:00:14]} Qf5 {[%emt 0:00:00]} 21. Bf3 {[%emt 0:00:08]} Rf8 {[%emt 0:00:00]} (21... Qxd3 $6 22. Rd1 Qf5 (22... Qc3 $2 23. Rxd6 Be8 24. Bxc6 $18) 23. Rxd6 $14) 22. Qd2 {[%emt 0:04:43]} (22. Bh4 $11 {keeps the balance.}) 22... Ne7 {[%emt 0:00:00]} ({Black should play} 22... Qg5 $17) 23. d4 {[%emt 0:05:36]} cxd4 {[%emt 0:00:00]} 24. exd4 {[%emt 0:00:07]} bxc4 {[%emt 0:00:00]} 25. dxe5 {[%emt 0:01:00]} dxe5 {[%emt 0:00:00]} 26. Qd6 {[%emt 0:01:47]} e4 {[%emt 0:00:00]} 27. Bxe4 {[%emt 0:05:12]} Qxe4 {[%emt 0:00:00]} 28. Re1 {[%emt 0:01:09]} Qf5 {[%emt 0:00:00]} 29. Rxe7 {[%emt 0:01:28]} Be6 {[%emt 0:00:00]} 30. Qe5 {[%emt 0:09:11]} (30. h3 $15) 30... Qxe5 {[%emt 0:01:12]} (30... c3 {is interesting.} 31. Qxc3 Rc8 32. Qe3 Qf6) 31. Bxe5 {[%emt 0:01:21]} cxb3 {[%emt 0:00:04]} 32. axb3 {[%emt 0:00:17]} Bxb3 {[%emt 0:00:26]} 33. Ra7 {[%emt 0:00:07]} Bc4 {[%emt 0:00:29]} 34. Bf6 {[%emt 0:00:44]} h5 {[%emt 0:02:15]} 35. h4 {[%emt 0:02:42]} Bb5 {[%emt 0:00:09]} 36. Kf2 {[%emt 0:00:16]} Re8 {[%emt 0:00:15]} 37. Kg3 {[%emt 0:03:45]} Re6 {[%emt 0:00:23]} 38. Ra8+ {[%emt 0:00:06] [#]} Be8 $1 {[%emt 0:00:21]} 39. Bd4 {[%emt 0:00:12]} Kf8 {[%emt 0:02:12]} 40. Bc5+ {[%emt 0:00:16]} Kg7 {[%emt 0:00:05]} 41. Ra7 {[%emt 0:00:20]} Re4 {[%emt 0:05:01]} 42. Re7 {[%emt 0:04:53]} ({Better is} 42. Rxa6 Rg4+ 43. Kh3) 42... Rg4+ {[%emt 0:02:02]} 43. Kf2 {[%emt 0:00:07]} Bc6 {[%emt 0:00:06]} 44. g3 {[%emt 0:00:08]} Rc4 {[%emt 0:00:16]} 45. Bd6 {[%emt 0:00:35]} Kf6 {[%emt 0:01:14]} 46. Ra7 {[%emt 0:00:28]} Ra4 {[%emt 0:00:16]} 47. Ke3 {[%emt 0:00:18]} Re4+ {[%emt 0:00:36]} 48. Kd3 {[%emt 0:00:17]} Re8 {[%emt 0:01:00]} 49. Bf4 {[%emt 0:00:26]} Bb5+ {[%emt 0:00:01]} 50. Kd4 {[%emt 0:00:11]} Ke6 {[%emt 0:00:20]} 51. Ke4 {[%emt 0:03:12]} Rd8 {[%emt 0:00:14]} 52. Bc7 {[%emt 0:01:25]} Rd7 {[%emt 0:01:13]} 53. Bb8 {[%emt 0:00:28]} Rd1 {[%emt 0:01:04]} 54. Bf4 {[%emt 0:00:27]} f6 {[%emt 0:00:29]} 55. Bb8 {[%emt 0:01:55]} Re1+ {[%emt 0:00:17]} 56. Kd4 {[%emt 0:00:21]} Kf5 {[%emt 0:00:11]} 57. Bd6 {[%emt 0:01:18]} Re4+ {[%emt 0:00:56]} 58. Kd5 {[%emt 0:00:24]} Re3 {[%emt 0:00:23]} 59. Re7 {[%emt 0:00:38]} Rd3+ {[%emt 0:00:08]} 60. Kc5 {[%emt 0:00:06]} Rc3+ {[%emt 0:00:56]} 61. Kd4 {[%emt 0:00:20]} Rd3+ {[%emt 0:00:11]} 62. Kc5 {[%emt 0:00:05]} Rf3 {[%emt 0:00:16]} 63. Kd4 {[%emt 0:00:35]} Rf1 {[%emt 0:00:15]} 64. Ke3 {[%emt 0:01:28]} (64. Bf4 $17) 64... Rd1 $19 {[%emt 0:00:33]} 65. Bb4 {[%emt 0:00:50]} Kg4 {[%emt 0:00:29]} 66. Kf2 {[%emt 0:01:05]} g5 {[%emt 0:01:39]} 67. hxg5 {[%emt 0:00:09]} fxg5 {[%emt 0:00:03]} 68. Re4+ {[%emt 0:00:24]} Kf5 {[%emt 0:00:10]} 69. Re1 {[%emt 0:00:46]} Rd5 {[%emt 0:00:16]} 70. Ba5 {[%emt 0:02:08]} Bc6 {[%emt 0:00:16]} 71. Bc7 {[%emt 0:00:55]} a5 {[%emt 0:00:59]} 72. Rc1 {[%emt 0:00:52]} Be8 {[%emt 0:01:08]} 73. Bb6 {[%emt 0:01:22]} Kg4 {[%emt 0:00:38]} 74. Be3 {[%emt 0:00:42]} (74. Bc7 {keeps fighting.}) 74... Rf5+ $19 {[%emt 0:00:21]} 75. Kg2 {[%emt 0:00:11]} Bf7 {[%emt 0:00:14]} 76. Rd1 {[%emt 0:00:46]} Bd5+ {[%emt 0:00:12]} 77. Kh2 {[%emt 0:00:11]} Be4 {[%emt 0:00:32]} 78. Bb6 {[%emt 0:01:24]} Rb5 {[%emt 0:00:52]} 79. Bd4 $2 {[%emt 0:00:23]} (79. Bc7) 79... Rd5 $19 {[%emt 0:00:32]} 80. Rd2 {[%emt 0:00:44]} a4 {[%emt 0:00:16]} 0-1

[Event "21st Open Gran Hotel Bali-A 2024"]
[Site "Benidorm"]
[Date "2024.11.30"]
[Round "2.19"]
[White "Sanchez Barbado, Carlos"]
[Black "Kulkarni Bhakti"]
[Result "1/2-1/2"]
[ECO "C04"]
[WhiteElo "2098"]
[BlackElo "2345"]
[Annotator "TA"]
[PlyCount "134"]
[EventDate "2024.11.26"]
[EventType "swiss"]
[EventCountry "ESP"]
[SourceTitle "playchess.com"]
[Source "ChessBase"]
[SourceQuality "1"]
[TimeControl "5400+30"]

{[%evp 18,134,36,29,45,33,58,53,44,54,62,20,15,31,30,21,23,17,18,16,16,16,16,8,23,3,30,0,0,0,0,0,0,0,0,0,0,-18,0,-4,0,0,0,0,8,8,8,0,0,-20,-22,-142,-145,-143,-143,-137,-145,-144,-144,-147,-147,-147,-147,-147,-147,-170,-170,-180,-180,-180,-23,-23,-23,-24,-24,-28,0,-27,0,-20,0,-170,-167,-180,-156,-170,-170,-170,-170,-185,-185,-185,-185,-185,-185,-203,-203,-204,-204,-204,-204,-204,-204,-204,-42,-42,-42,-42,-23,-23,0,0,0,0,0,0,0,0,0]} 1. e4 {[%emt 0:00:02]} e6 {[%emt 0:03:47]} 2. d4 {[%emt 0:00:09]} d5 {[%emt 0:00:08]} 3. Nd2 {[%emt 0:00:06][%cal Bb1d2,Bd2f1,Bf1e3,Be3g4][%mdl 32]} Nc6 {[%emt 0:00:46]} 4. Ngf3 {[%emt 0:00:19]} Nf6 {[%emt 0:00:13]} 5. e5 {[%emt 0:00:10]} Nd7 {[%emt 0:00:04]} 6. Be2 {[%emt 0:00:16]} f6 {[%emt 0:00:36]} 7. exf6 {[%emt 0:00:10]} Qxf6 {[%emt 0:00:17]} 8. Nf1 {[%emt 0:00:11]} Bd6 {[%emt 0:03:00]} 9. Ne3 {[%emt 0:00:14]} O-O {[%emt 0:05:10]} 10. O-O {[%emt 0:00:25]} Kh8 {[%emt 0:02:55]} 11. h3 {[%emt 0:06:04]} h6 {[%emt 0:05:53]} 12. Ng4 {[%emt 0:19:53]} Qf7 {[%emt 0:04:06]} 13. c4 {[%emt 0:05:29]} e5 {[%emt 0:15:03]} 14. cxd5 {[%emt 0:25:05]} Qxd5 {[%emt 0:02:42]} 15. dxe5 {[%emt 0:00:20]} Qxd1 {[%emt 0:00:15]} 16. Rxd1 {[%emt 0:00:05]} Ndxe5 {[%emt 0:00:27]} 17. Ngxe5 {[%emt 0:00:36]} Nxe5 {[%emt 0:00:12]} 18. Nd4 {[%emt 0:01:14]} a6 {[%emt 0:01:02]} 19. Be3 {[%emt 0:00:56]} Bd7 {[%emt 0:01:34]} 20. Nb3 {[%emt 0:00:34]} Ba4 {[%emt 0:07:36]} 21. Rd5 {[%emt 0:05:03]} Ng6 {[%emt 0:11:07]} 22. Rd4 {[%emt 0:13:35] Against Nf4} Bxb3 {[%emt 0:13:05]} 23. axb3 {[%emt 0:00:05]} Bc5 {[%emt 0:01:38]} 24. Rd7 {[%emt 0:03:11]} Bd6 $1 {[%emt 0:02:25]} 25. Bd4 {[%emt 0:00:26] This pair of bishops is nice.} Ne5 {[%emt 0:00:17]} 26. Bxe5 {[%emt 0:00:15]} Bxe5 {[%emt 0:00:02]} 27. Rad1 {[%emt 0:00:26]} b6 {[%emt 0:03:24][%cal Oe5d6]} 28. b4 {[%emt 0:01:10]} c5 {[%emt 0:01:27]} 29. bxc5 {[%emt 0:03:01]} bxc5 {[%emt 0:00:02]} 30. b3 {[%emt 0:00:21]} a5 {[%emt 0:04:03]} 31. Bf3 {[%emt 0:04:08]} Rab8 {[%emt 0:00:12]} 32. R1d3 {[%emt 0:02:16]} Bd4 {[%emt 0:01:21]} 33. Ra7 {[%emt 0:02:01]} Rfd8 {[%emt 0:00:15][%cal Od4f2]} 34. Kf1 {[%emt 0:00:42] [#]} (34. Be2 $1 $11) 34... c4 $1 $36 {[%emt 0:00:29][%mdl 2560] Black is in control.} 35. Rxd4 {[%emt 0:00:41]} Rxd4 {[%emt 0:00:05]} 36. bxc4 {[%emt 0:00:12]} Rxc4 {[%emt 0:03:19]} 37. Rxa5 {[%emt 0:00:05][%mdl 4096] Endgame KRR-KRB} Rc1+ {[%emt 0:02:01]} 38. Ke2 {[%emt 0:00:09] [#]} Rc2+ $1 {[%emt 0:00:55]} 39. Ke3 {[%emt 0:03:08]} Rb3+ {[%emt 0:00:46]} 40. Kf4 {[%emt 0:00:53] Ra8+ is the strong threat.} Rxf2 {[%emt 0:00:17]} 41. Kg3 {[%emt 0:00:52]} Rfb2 {[%emt 0:01:40]} 42. Ra7 {[%emt 0:00:13]} Kh7 {[%emt 0:00:26]} 43. Rc7 {[%emt 0:00:13]} Kg6 $2 {[%emt 0:00:19]} (43... h5 $19 44. Re7 Rd2) 44. Rc6+ $1 $11 {[%emt 0:00:14]} Kf5 {[%emt 0:00:26]} 45. Rc5+ {[%emt 0:00:10]} Kf6 {[%emt 0:00:05]} 46. Rc6+ {[%emt 0:00:03]} Kf5 {[%emt 0:00:42]} 47. Rc5+ {[%emt 0:00:07]} Kg6 {[%emt 0:00:02]} 48. Rc6+ $1 {[%emt 0:00:06]} Kh7 {[%emt 0:00:07]} (48... Kf7 $11) 49. Rc7 $19 {[%emt 0:00:06]} Rd2 {[%emt 0:00:17]} 50. Ra7 {[%emt 0:00:09]} Kg6 {[%emt 0:00:25]} 51. Ra6+ {[%emt 0:00:17]} Kf5 {[%emt 0:00:16]} 52. Ra5+ {[%emt 0:02:11]} Ke6 {[%emt 0:00:10]} 53. Kh4 {[%emt 0:00:53]} Rd4+ {[%emt 0:01:30]} 54. Kg3 {[%emt 0:00:48]} g6 {[%emt 0:01:13]} 55. Ra6+ {[%emt 0:01:30] [#]} Rd6 $1 {[%emt 0:00:05]} 56. Ra8 {[%emt 0:00:20]} h5 {[%emt 0:00:48]} 57. Re8+ {[%emt 0:01:38]} Kf7 {[%emt 0:00:23]} 58. Re4 {[%emt 0:01:25]} g5 {[%emt 0:00:25]} 59. Ra4 {[%emt 0:00:48]} Kf6 {[%emt 0:00:38]} 60. Rc4 {[%emt 0:00:32]} Rd2 $2 {[%emt 0:00:35]} ({Better is} 60... Kg6 $19 {Hoping for ...h4+.} 61. Rc8 h4+ 62. Kh2 Re3) 61. Rc6+ $15 {[%emt 0:00:11]} Ke7 {[%emt 0:00:56]} 62. Rg6 {[%emt 0:00:39]} Rd5 {[%emt 0:02:53]} 63. Kh2 {[%emt 0:00:39][%csl LRd5,LRh5]} Rxf3 {[%emt 0:00:21]} 64. gxf3 {[%emt 0:00:08]} Kf7 {[%emt 0:00:04]} 65. Rh6 {[%emt 0:00:32]} Rd2+ {[%emt 0:00:14]} 66. Kg1 {[%emt 0:00:47]} h4 {[%emt 0:00:03]} 67. f4 {[%emt 0:00:10]} gxf4 {[%emt 0:00:28]} 1/2-1/2

[Event "21st Open Gran Hotel Bali-A 2024"]
[Site "Benidorm"]
[Date "2024.11.30"]
[Round "2.20"]
[White "Turski, Bartlomiej"]
[Black "Lasinskas, Povilas"]
[Result "1-0"]
[ECO "C78"]
[WhiteElo "2345"]
[BlackElo "2112"]
[Annotator "TA"]
[PlyCount "71"]
[EventDate "2024.11.26"]
[EventType "swiss"]
[EventCountry "ESP"]
[SourceTitle "playchess.com"]
[Source "ChessBase"]
[SourceQuality "1"]
[TimeControl "5400+30"]

{[%evp 17,71,23,50,16,3,10,11,10,12,30,56,62,77,87,127,127,113,110,126,116,127,114,140,117,152,106,175,170,164,156,158,161,177,156,177,160,217,142,334,315,296,285,698,712,1148,1180,1121,1128,29982,29983,29983,29984,29987,950,766,544]} 1. e4 {[%emt 0:02:27]} e5 {[%emt 0:00:11]} 2. Nf3 {[%emt 0:00:08]} Nc6 {[%emt 0:00:07]} 3. Bb5 {[%emt 0:00:39]} a6 {[%emt 0:01:56]} 4. Ba4 {[%emt 0:00:13]} Nf6 {[%emt 0:00:14]} 5. O-O {[%emt 0:00:14]} b5 {[%emt 0:00:09]} 6. Bb3 {[%emt 0:00:05]} Bc5 {[%emt 0:00:11]} 7. c3 {[%emt 0:00:13]} d6 {[%emt 0:00:04]} 8. d4 {[%emt 0:00:09]} Bb6 {[%emt 0:00:06]} 9. a4 {[%emt 0:00:10][%cal Ba2a4,Ba4a5][%mdl 32]} Rb8 {[%emt 0:00:45]} 10. a5 {[%emt 0:00:36]} Ba7 {[%emt 0:00:04]} (10... Nxa5 11. Rxa5 Bxa5 12. dxe5 Nxe4 13. Qd5 $14) 11. h3 {[%emt 0:00:11]} O-O {[%emt 0:00:22]} 12. Be3 {[%emt 0:00:09] The position is equal.} exd4 {[%emt 0:06:52]} (12... Nxe4 $6 13. Bd5 Nxa5 (13... exd4 14. Bxe4 dxe3 15. Bxc6 $16) 14. Bxe4 $18 (14. Rxa5 c6 $16)) 13. cxd4 {[%emt 0:01:16]} h6 {[%emt 0:00:35]} 14. Nc3 {[%emt 0:03:35]} Re8 {[%emt 0:02:04]} 15. Re1 {[%emt 0:18:25]} b4 {[%emt 0:30:59]} 16. Nd5 {[%emt 0:01:58]} Nxd5 {[%emt 0:03:25]} 17. Bxd5 {[%emt 0:00:50]} (17. exd5 Ne7 $14) 17... Ne7 {[%emt 0:00:59][%cal Bc6e7,Be7g6,Bg6f8,Bf8e6][%mdl 32]} 18. Bb3 {[%emt 0:01:04]} Ng6 {[%emt 0:00:47]} 19. Qc2 {[%emt 0:01:54]} Bb7 {[%emt 0:04:17] [#]} 20. e5 $36 {[%emt 0:01:22][%mdl 2560] White is on the roll.} Nf8 {[%emt 0:01:12]} 21. Rac1 {[%emt 0:04:14] White has more active pieces.} (21. Qf5 $142 Re7 22. Rad1) 21... Re7 {[%emt 0:06:10]} (21... Bxf3 $16 22. Qf5 (22. gxf3 Re7 $16) 22... Re7) 22. Nh4 $18 {[%emt 0:02:53] Strongly threatening Nf5.} dxe5 {[%emt 0:02:21]} 23. Nf5 {[%emt 0:01:00]} Rd7 {[%emt 0:00:38]} 24. dxe5 {[%emt 0:00:51]} Bxe3 {[%emt 0:00:06]} 25. Rxe3 {[%emt 0:00:49] Threatens to win with Rg3.} (25. fxe3 $2 Rd2 26. Bxf7+ Kh8 $19 (26... Kxf7 27. Nd6+ cxd6 28. Qxd2 $17)) 25... Ne6 {[%emt 0:08:59]} 26. Rg3 {[%emt 0:01:36]} Kh8 {[%emt 0:00:05]} 27. Qe2 {[%emt 0:02:18] Qe3 is the strong threat.} (27. Bxe6 $6 fxe6 28. Ne3 Qe7 $14) 27... Bd5 $2 {[%emt 0:04:54] A mistake that costs the game.} (27... Nf4 $16 28. Qg4 Qg5) 28. Ba4 {[%emt 0:03:57]} (28. Qxa6 $2 Bxb3 29. Kh2 Bd5 30. Nxg7 Ra8 31. Nxe6 Rxa6 $19 (31... Bxe6 $2 32. Qb5 $19)) 28... c6 {[%emt 0:00:06]} 29. Qe3 {[%emt 0:00:44]} ({Less strong is} 29. Qxa6 Ra8 30. Qe2 Rxa5 $16) (29. Bxc6 Rc7 $16) 29... f6 $2 {[%emt 0:11:12]} (29... Ng5 30. Bxc6 Bxc6) 30. Bxc6 {[%emt 0:01:32]} Rc7 {[%emt 0:01:58]} 31. Bxd5 {[%emt 0:00:58] Rxc7 would kill now.} Rxc1+ {[%emt 0:00:17]} 32. Qxc1 {[%emt 0:00:04]} Qxd5 {[%emt 0:00:07] [#]} 33. Rxg7 $3 {[%emt 0:01:01][%cal Rc1h6][%mdl 512]} Ng5 {[%emt 0:00:22]} 34. Qc7 {[%emt 0:00:31]} Rg8 {[%emt 0:00:56]} 35. Rxg8+ {[%emt 0:00:43]} (35. exf6 $142 Qe6 36. Nxh6 (36. Rxg8+ Qxg8 37. Ne7 Qe8 $18) 36... Qe1+ 37. Kh2 Nf3+ 38. Kg3 Qe5+ 39. Qxe5 Nxe5 40. Nxg8 (40. Rxg8+ Kh7 41. Ng4 Kxg8 42. Nxe5 Kf8 43. h4 Ke8 44. h5 Kd8)) 35... Qxg8 {[%emt 0:00:06]} 36. Kh2 {[%emt 0:00:55] Weighted Error Value: White=0.13 (very precise) /Black=0.55.  Loses game:     	---       	Black=1      Mistake:       	White=1     	Black=2      Inaccurate:     	White=1     	Black=3      OK:         	White=11    	Black=12     Best:        	White=2     	---} 1-0